Cogmind - Beta 13 @@@ ROGUE MODE // 2024.03.06 @ 15:00:31 // Winter2022/Polymind Player: Minty Result: Self-destructed Performance ------------- Evolutions (2) 1000 Regions Visited (4) 800 Robots Destroyed (21) 105 Value Destroyed (660) 660 Prototype IDs (0) 0 Alien Tech Used (0) 0 Bonus (1445) 1445 TOTAL SCORE: 3770 Bonus ------- Polymind Skill 1445 Cogmind --------- Core Integrity 144/550 Matter 0/0 Energy 81/100 System Corruption 0% Temperature Cool (0) Movement Core (50) Location -8/Materials Parts ------- > --- POWER (1) -------- (None) > --- PROPULSION (2) --- (None) > --- UTILITY (1) ------ (None) > --- WEAPON (1) ------- (None) > --- INVENTORY (0) ---- (None) Peak State ------------ > --- POWER ------------ Light Nuclear Core > --- PROPULSION ------- Carbon-fiber Leg Carbon-fiber Leg > --- UTILITY ---------- Targeting Computer > --- WEAPON ----------- Assault Rifle Gauss Rifle > --- INVENTORY -------- (None) [Rating: 15] Favorites ----------- Power Subdweller Power Source Engine Subdweller Power Source Power Core Light Nuclear Core Propulsion Light Treads Treads Light Treads Leg Carbon-fiber Leg Wheel Subdweller Monowheel Utility Heat Sink Device Heat Sink Processor Targeting Computer Protection Scrap Shield Weapon Subdweller Laser Energy Gun Subdweller Laser Ballistic Gun Heavy Assault Rifle Special Weapon Mining Laser Build | -11 -10 -10 -10 -8 ------- Run | Yrd Mat Min Sub Mat Slots Evolved . | . . . . . Power . | . . . . . Propulsion . | . . . . . Utility . | . . . . . Weapon . | . . . . . Parts Attached . | . . . . . Power . | . . . . . Engine . | . . . . . Core . | . . . . . Reactor . | . . . . . Propulsion . | . . . . . Treads . | . . . . . Leg . | . . . . . Wheel . | . . . . . Hover . | . . . . . Flight . | . . . . . Utility . | . . . . . Device . | . . . . . Storage . | . . . . . Processor . | . . . . . Hackware . | . . . . . Protection . | . . . . . Artifact . | . . . . . Weapon . | . . . . . Energy Gun . | . . . . . Energy Cannon . | . . . . . Ballistic Gun . | . . . . . Ballistic Cannon . | . . . . . Launcher . | . . . . . Special Weapon . | . . . . . Impact Weapon . | . . . . . Slashing Weapon . | . . . . . Piercing Weapon . | . . . . . Special Melee Weapon . | . . . . . Unidentified Prototypes . | . . . . . Parts Lost 17 | . . . 5 12 Power 4 | . . . 1 3 Propulsion 3 | . . . 2 1 Utility 5 | . . . 1 4 Weapon 5 | . . . 1 4 Highest Loss Streak 6 | . . . 5 6 To Critical Strikes 1 | . . . . 1 Average Slot Usage (%) 88 | . . 85 90 87 Engine 13 | . . 13 14 5 Treads 6 | . . . 5 10 Leg 2 | . . . . 16 Wheel 13 | . . 28 16 . Device 22 | . . 28 24 11 Processor 1 | . . . . 7 Protection 9 | . . . 10 5 Energy Gun 9 | . . . 10 4 Ballistic Gun 5 | . . . 2 19 Special Weapon 3 | . . 13 3 . Naked Turns 60 | . 19 14 3 24 Heaviest Build 30 | . . 6 30 18 Greatest Support 40 | 3 3 20 40 40 Greatest Overweight (x) 9 | . . . 9 . Average Overweight (x) 1 | . . . 1 . Largest Inventory Capacity 2 | . . . 2 1 Average Capacity 1 | . . . 1 . Most Carried 1 | . . . 1 . Average Carried . | . . . . . Final Capacity 1 | . . . 1 . Final Carried . | . . . . . Class Distribution -------------------- 46% | Subdweller 24% | Sentry 10% | Tunneler 8% | Artisan 6% | Hunter Dominant Class ---------------- Cogmind | -10/Materials Tunneler | -10/Mines Subdweller | -10/Subcaves Sentry | -8/Materials Resources | -11 -10 -10 -10 -8 ----------- Run | Yrd Mat Min Sub Mat Matter Collected 358 | . . . 11 347 Remotely . | . . . . . Salvage Created 873 | . . . 191 682 Parts 50 | . . . 17 33 Haulers Intercepted . | . . . . . Recyclers Shooed 2 | . . . . 2 Parts Field Recycled . | . . . . . Retrieved Matter . | . . . . . Parts Self-Destructed . | . . . . . Prevented . | . . . . . Kills | -11 -10 -10 -10 -8 ------- Run | Yrd Mat Min Sub Mat Combat Hostiles Destroyed 13 | . . . 4 9 Guns 13 | . . . 4 9 Classes Destroyed 9 | . . . 2 7 Worker 1 | . . . . 1 Tunneler 2 | . . . 1 1 Recycler 3 | . . . . 3 Mechanic 1 | . . . . 1 Watcher 1 | . . . . 1 Grunt 7 | . . . . 7 Sentry 1 | . . . . 1 Hunter 1 | . . . . 1 Subdweller 4 | . . . 4 . Best Kill Streak 5 | . . . 1 5 Combat Bots Only 2 | . . . 1 2 Max Kills in Single Turn 2 | . . . 1 2 Gunslinging . | . . . . . Exploded . | . . . . . Melee . | . . . . . Uniques/NPCs Destroyed . | . . . . . Combat | -11 -10 -10 -10 -8 -------- Run | Yrd Mat Min Sub Mat Hostile Shots Fired 184 | . 4 . 53 127 Missed 49 | . 2 . 18 29 Damage Taken 2349 | . 13 . 743 1593 Core 651 | . 13 . 232 406 Absorbed by Shields . | . . . . . Ignored by Resistances 53 | . . . . 53 Core Remaining (%) 51 | 100 . . 2 . Volleys Fired 103 | . . . 30 73 Largest 2 | . . . 2 2 Hottest 100 | . . . 100 79 Shots Fired 155 | . . . 30 125 Gun 153 | . . . 28 125 Cannon . | . . . . . Launcher . | . . . . . Special 2 | . . . 2 . Kinetic 103 | . . . 1 102 Thermal 52 | . . . 29 23 Explosive . | . . . . . Electromagnetic . | . . . . . Robot Hit Streak 9 | . . . 7 9 Robot Miss Streak 6 | . . . 1 6 Penetration Max 1 | . . . . 1 Secondary Targets . | . . . . . Shots Hit Robots 91 | . . . 15 76 Core Hits 48 | . . . 13 35 Critical Kills 1 | . . . . 1 Critical Parts Destroyed 1 | . . . . 1 Critical Strikes 3 | . . . . 3 Burn 1 | . . . . 1 Destroy 2 | . . . . 2 Melee Attacks . | . . . . . Impact . | . . . . . Slashing . | . . . . . Piercing . | . . . . . Sneak Attacks . | . . . . . Combat Hostiles . | . . . . . Follow-up Attacks . | . . . . . Damage Inflicted 1826 | . . . 413 1413 Guns 1691 | . . . 303 1388 Cannons . | . . . . . Explosions . | . . . . . Melee . | . . . . . Ramming 111 | . . . 86 25 Kinetic 1222 | . . . 18 1204 Thermal 493 | . . . 309 184 Explosive . | . . . . . Electromagnetic . | . . . . . Impact . | . . . . . Slashing . | . . . . . Piercing . | . . . . . Highest Corruption . | . . . . . Average Corruption . | . . . . . Corruption Purged . | . . . . . Corruption Blocked . | . . . . . Overload Shots . | . . . . . Overflow Damage . | . . . . . Projectiles . | . . . . . Explosions . | . . . . . Melee . | . . . . . Knockbacks . | . . . . . Impact . | . . . . . Kinetic . | . . . . . Secondary . | . . . . . Self-Inflicted Damage 47 | . . . 38 9 Shots . | . . . . . Rammed 26 | . . . 20 6 Targets Rammed 26 | . . . 20 6 Kicked . | . . . . . Crushed . | . . . . . Highest Temperature 253 | . . . 253 31 Average Temperature 40 | . . . 61 14 Received Heat Transfer 1072 | . . . 451 621 Siege Activations . | . . . . . Robots Corrupted . | . . . . . Combat Hostiles . | . . . . . Parts Fried . | . . . . . Impact Corruptions . | . . . . . Robots Melted . | . . . . . Combat Hostiles . | . . . . . Parts Melted 1 | . . . . 1 Heat Transferred 893 | . . . 375 518 Parts Sabotaged . | . . . . . Parts Stolen . | . . . . . Parts Stripped . | . . . . . Power Chain Reactions . | . . . . . Alert | -11 -10 -10 -10 -8 ------- Run | Yrd Mat Min Sub Mat Peak Influence 203 | . . . . 203 Initial . | . . . . . Average 65 | . . . . 80 Maximum Alert Level 1 | . . . . 1 Low Security (%) 99 | . 100 100 . 98 Level 1 . | . . . . 1 Level 2 . | . . . . . Level 3 . | . . . . . Level 4 . | . . . . . Level 5 . | . . . . . High Security . | . . . . . Max Security . | . . . . . Squads Dispatched 4 | . . . . 4 Investigation . | . . . . . Extermination . | . . . . . Reinforcement 4 | . . . . 4 Assault . | . . . . . Garrison . | . . . . . Intercept . | . . . . . Searches Triggered . | . . . . . Construction Impeded . | . . . . . Haulers Reinforced . | . . . . . Active Scanning Responses . | . . . . . Cargo Convoy Interrupts . | . . . . . Stealth | -11 -10 -10 -10 -8 --------- Run | Yrd Mat Min Sub Mat Distress Signals 1 | . . . . 1 Communications Jammed . | . . . . . Distress Signals . | . . . . . Times Spotted 44 | . 3 . 8 33 Peak Tracking Total 8 | . 4 . 2 8 Tactical Retreats 3 | . . . 1 2 Traps | -11 -10 -10 -10 -8 ------- Run | Yrd Mat Min Sub Mat Traps Triggered 1 | . . . 1 . Indirectly . | . . . . . Trap Hack Attempts . | . . . . . Triggered . | . . . . . Disarmed . | . . . . . Reprogrammed . | . . . . . Reused . | . . . . . Traps Extracted . | . . . . . Installed . | . . . . . Triggered . | . . . . . Machines | -11 -10 -10 -10 -8 ---------- Run | Yrd Mat Min Sub Mat Machines Disabled . | . . . . . Max in Single Turn . | . . . . . Machines Repaired . | . . . . . Machines Dismantled . | . . . . . Machines Sabotaged . | . . . . . Overloaded Fab Kills . | . . . . . Hacking | -11 -10 -10 -10 -8 --------- Run | Yrd Mat Min Sub Mat Machines Accessed 2 | . . . 1 1 Terminals 1 | . . . . 1 Fabricators . | . . . . . Repair Stations . | . . . . . Recycling Units . | . . . . . Scanalyzers . | . . . . . Garrison Access . | . . . . . Total Hacks 6 | . . . 2 4 Successful 3 | . . . 2 1 Failed 3 | . . . . 3 Catastrophic 1 | . . . . 1 Database Lockouts . | . . . . . Manual 4 | . . . . 4 Terminals 4 | . . . . 4 Fabricators . | . . . . . Repair Stations . | . . . . . Recycling Units . | . . . . . Scanalyzers . | . . . . . Garrison Access . | . . . . . Terminal Hacks 2 | . . . 2 . Record 2 | . . . 2 . Fabricator Hacks . | . . . . . Repair Station Hacks . | . . . . . Recycling Unit Hacks . | . . . . . Scanalyzer . | . . . . . Garrison Access Hacks . | . . . . . Unauthorized Hacks 1 | . . . . 1 Terminals 1 | . . . . 1 Botnet 1 | . . . . 1 Fabricators . | . . . . . Repair Stations . | . . . . . Recycling Units . | . . . . . Scanalyzers . | . . . . . Garrison Access . | . . . . . Data Cores Recovered . | . . . . . Used . | . . . . . Hacking Detections 1 | . . . . 1 Full Trace Events 1 | . . . . 1 Feedback Events . | . . . . . Feedback Blocked . | . . . . . Robot Schematics Acquired . | . . . . . Robots Built . | . . . . . Authchips . | . . . . . Time . | . . . . . Total Robot Build Rating . | . . . . . Part Schematics Acquired . | . . . . . Parts Built . | . . . . . Authchips . | . . . . . Time . | . . . . . Total Part Build Rating . | . . . . . Parts Repaired . | . . . . . Time . | . . . . . Parts Recycled . | . . . . . Recycled Matter . | . . . . . Retrieved Matter . | . . . . . Retrieved Components . | . . . . . Parts Scanalyzed . | . . . . . Part Schematics Acquired . | . . . . . Parts Damaged . | . . . . . Bothacking | -11 -10 -10 -10 -8 ------------ Run | Yrd Mat Min Sub Mat Used RIF Installer . | . . . . . Robots Hacked 3 | . . . 1 2 Non-combat . | . . . . . Combat 3 | . . . 1 2 Robot Hacks Applied 5 | . . . 1 4 find_shortcuts 3 | . . . 1 2 find_garrison 2 | . . . . 2 Relay Couplers Released . | . . . . . Fabnet Peak Effective % . | . . . . . Robots Rewired . | . . . . . Allies Hacked . | . . . . . Hacks Repelled . | . . . . . Allies | -11 -10 -10 -10 -8 -------- Run | Yrd Mat Min Sub Mat Total Allies . | . . . . . Largest Group . | . . . . . Highest-Rated Group . | . . . . . Highest-Rated Ally . | . . . . . Total Orders . | . . . . . Ally Attacks . | . . . . . Total Damage . | . . . . . Kills . | . . . . . Allies Corrupted . | . . . . . Allies Melted . | . . . . . Intel | -11 -10 -10 -10 -8 ------- Run | Yrd Mat Min Sub Mat Robot Analysis Total 6 | . . 1 3 2 Derelict Logs Recovered 1 | . . . 1 . Drone Launches . | . . . . . Drone Recoveries . | . . . . . Exploration | -11 -10 -10 -10 -8 ------------- Run | Yrd Mat Min Sub Mat Turns Passed 2361 | . 19 70 1892 380 Spaces Moved 1301 | 1 38 94 1020 148 Core 313 | 1 38 27 206 41 Treads 309 | . . . 251 58 Legs 49 | . . . . 49 Wheels 630 | . . 67 563 . Hover . | . . . . . Flight . | . . . . . Fastest Speed 50 | 50 50 50 50 50 Average Speed 158 | 50 50 71 176 116 Slowest Speed 500 | 50 50 80 500 160 Overloaded Moves . | . . . . . Propulsion Burnouts . | . . . . . Robots Hopped . | . . . . . Cave-ins Triggered . | . . . . . Exploration Rate (%) 21 | 2 14 33 35 24 Regions Visited 4 Branch Regions 2 Pre-discovered Areas 2 | . . . 2 . Known Exits Taken . | . . . . . Unknown Exits Taken 4 | 1 1 1 1 . Scrap Searched 11 | . . . 11 . Spaces Dug . | . . . . . Terrain Destroyed . | . . . . . Melee . | . . . . . Projectile . | . . . . . AOE . | . . . . . Terrain Rammed . | . . . . . Walls Destroyed . | . . . . . Machines Disabled . | . . . . . Actions | -11 -10 -10 -10 -8 --------- Run | Yrd Mat Min Sub Mat Total 1437 | . 37 96 1075 229 Wait 3 | . . . 1 2 Move 1297 | . 37 93 1019 148 Hop . | . . . . . Pick Up . | . . . . . Fast Attach . | . . . . . Attach . | . . . . . Detach . | . . . . . Swap . | . . . . . Drop 1 | . . . 1 . Fire 103 | . . . 30 73 Melee . | . . . . . Ram 23 | . . . 20 3 Kick . | . . . . . Crush 3 | . . . . 3 Escape Stasis . | . . . . . Rewire . | . . . . . Trap . | . . . . . Miscellaneous 7 | . . 3 4 . Route ------- -11/Scrapyard -10/Materials -10/Mines (discovered 2 exits: [*Mat] / *Sub) -10/Subcaves -8/Materials History --------- Turn | Location | Event 1 | -11/Scrapyard | Discovered new exit (range 0) 1 | -11/Scrapyard | Entered Materials 17 | -10/Materials | Discovered new exit (range 8) 20 | -10/Materials | Entered Mines 34 | -10/Mines | Discovered new exit (range 12) 80 | -10/Mines | Discovered new exit (range 10) 90 | -10/Mines | Entered Subcaves 244 | -10/Subcaves | Shifting Twisted Machinery released Scrap Shield 246 | -10/Subcaves | Shifting Twisted Machinery released Ripper 575 | -10/Subcaves | Visited Clippyterm 585 | -10/Subcaves | Learned location of Storage (-9) 704 | -10/Subcaves | A swath of the cavern ceiling suddenly collapsed 1066 | -10/Subcaves | Ambushed by Subdwellers from Twisted Machinery 1557 | -10/Subcaves | Core integrity fell below 50% 1574 | -10/Subcaves | Core integrity fell below 20% 1598 | -10/Subcaves | Lost 5 parts (1p2n1u1w) 1943 | -10/Subcaves | Discovered new exit (range 15) 1965 | -10/Subcaves | Learned location of Zion (-6) 1965 | -10/Subcaves | Met a Zionite searching for "candidates" 1982 | -10/Subcaves | Entered Materials 2189 | -8/Materials | Lost 6 parts (1p1n3u1w) 2334 | -8/Materials | Core integrity fell below 50% 2362 | -8/Materials | Self-destructed Last Messages --------------- 02322_ Slug penetrates G-47 Trooper. 02323_ Gauss Rifle destroyed. 02324_ Released control of H-55 Commando. 02325_ H-55 Commando reactivates. 02326_ Took control of G-47 Trooper. 02326_ Extracted analysis data for G-47 Trooper. 02327_ H-61 Shepherd calls for reinforcements. 02327_ ALERT: Hostile activity reported, dispatching reinforcements to area. 02327_ Knocked back. 02336_ Lgt. Nuclear Core destroyed. 02336_ Particle Gun destroyed. 02336_ Imp. Heat Sink destroyed. 02336_ Critical hit (Blast). 02338_ Knocked back. 02340_ Slug penetrates Wall. 02340_ Released control of G-47 Trooper. 02342_ G-47 Trooper reactivates. 02351_ Slammed into G-47 Trooper. 02353_ Slammed into Y-45 Defender. Map ----- +----------------------------------------------------+ | | | | | ?????????????????????????????????????????????????? | | ?????????????????????????????????????????????????? | | ?????????????????????????????????????????????????? | | ?????????????????????????????????????????????????? | | ?????????????????????????????????????????????????? | | ?????????????????????????????????????????????????? | | ??????????????????????????????????###########????? | | ??????????????????????????????????# ####?? | | ??????????????????????????????????# # #?? | | ??????????????????????????????????# # #?? | | ??????????????????????????????????# + +?? | | ??????????????????????????????????# # #?? | | ??????????????????????????????????# ] # #?? | | ??????????????????????????????????# # #?? | | ??????????????????????########????# # #?? | | ????????????????????# !#????######+#### #?? | | ????????????????????# """"" #?????????# #??# #?? | | ????????????????????# """"" ######????# #?## ##? | | ????????????????????# """"" # ######%### #? | | ????????????????????# + % #? | | ????????????????????# """ # H #? | | ????????????????????# """ # #########" #? | | ????????????????????# """ ##"###???????##""#### | | ????????????????????# @ # ????????# = | | ????????????????????########## ??????# ]]""" | | ?????????????????????????????# ????#=%%""" | | ?????????????????????????????# ??#!]%""" | | ?????????????????????????????# ##%=*! | | ???????????? ????????????????# #"*%%""" | | ???????????? ????????????????# ## % """ | | ???????????? ????????????????######+####### """ | | ???????????? ????????????????????# + | | ???????????? ????????????????????# ########"#### | | ???????????? ????????????????????# #??????? #??? | | ???????????# ????????????????????# #???????##??? | | ???????????# #???????????????????#*% #???????????? | | ???????????# #??????#????????????# #???????????? | | ???????????# #????? #????????????# #???????????? | | ???????????# #???? ?????????????# #???????????? | | ???????????# #??? ??????????????# #???????????? | | ############ ###+################# #???????????? | | % !!* #???????????? | | =% %[%[ #???????????? | | % [ % =* ! #???????????? | | ^ ########+################# #???????????? | | [#?????? ??????????????# #???????????? | | """ = #????? ?????????????# #???????????? | | """ #???? ""T"" ????????????# #???????????? | +----------------------------------------------------+ Best States ------------- Heat Dissipation 42 Coolant Potential 50 Energy Generation 20 Energy Capacity 215 Matter Stores 200 Matter Capacity 200 Sight Range 19 Terrain Scan Range 16 Terrain Scan Density 10 Armor Coverage 800 Resistance: KI 25 Resistance: EX 50 Resistance: I 25 Evasion (%) 55 Targeting Accuracy 5 Recoil Reduction 2 Item Schematics ----------------- None Robot Schematics ------------------ None Fabricated ------------ Nothing Alien Tech Used ----------------- None Achievements -------------- None Challenges ------------ None Polymind | -11 -10 -10 -10 -8 ---------- Run | Yrd Mat Min Sub Mat Hosts 7 | . . 1 4 2 Combat Hostiles 4 | . . . 2 2 Allies . | . . . . . Unique Host Classes 6 | . . 1 3 2 Average Host Suspicion 80 | . . 11 80 91 Unsuspicious Activity 241 | . . 17 224 . Returns to Shadow . | . . . . . Fuzzy Dispatches . | . . . . . Protomatter Created 98 | . . . 24 74 Used 140 | . . 5 71 64 Decayed 24 | . . . 24 . Highest Spend 34 | . . 5 33 34 Top 5 Hosts by Kills: H-55 Commando (-8/Materials: 7) 7E-DHA(R) (-10/Subcaves: 4) Y-45 Defender (-10/Subcaves: 2) Game ------ Seed HardcellHelicalPendant Manual? 0 Play Time 00:10:13 Cumulative 692.5 hours Start 2024.03.06 @ 14:52:46 End 2024.03.06 @ 15:00:31 Sessions 1 Manual Loads 0 Difficulty Rogue Special Mode Winter2022/Polymind Game No. 720 Rogue 445 Adventurer 123 Explorer 152 Win Type - Total 26 Types 20/0/4/1/0/0/0/1/0 Lore% 81 Gallery% 91 Achievement% 76 Wizard Run 0 Options --------- Layout 0 ASCII 0 Keyboard 1 Movement Numpad Keybinds 0 Fullscreen 2 Font 18/SmallcapsGlow Map View 76x50 Zoom Use 0% Tactical HUD 1 Map Filters NONE Filters NONE Steam 1 RUN: 604ac722-e3be-467d-b703-14c6e46bc95d